[Event "*** Titled Tuesday Blitz"]
[Site "Chess.com"]
[Date "2020.04.28"]
[Round "6"]
[White "GasconJR"]
[Black "noblerone"]
[Result "0-1"]
[WhiteElo "2578"]
[BlackElo "2448"]
[TimeControl "180+1"]
[EndTime "11:07:57 PDT"]
[Termination "noblerone won by resignation"]

1. d4 {[%clk 0:03:00.9]} 1... d5 {[%clk 0:02:56.7]} 2. Bf4 {[%clk 0:03:00.4]}
2... c5 {[%clk 0:02:56.4]} 3. e3 {[%clk 0:02:55]} 3... Nc6 {[%clk 0:02:55.9]} 4.
Nf3 {[%clk 0:02:54.3]} 4... Nf6 {[%clk 0:02:55.1]} 5. Nbd2 {[%clk 0:02:50.8]}
5... Bg4 {[%clk 0:02:49.3]} 6. h3 {[%clk 0:02:45.5]} 6... Bxf3 {[%clk
0:02:45.3]} 7. Nxf3 {[%clk 0:02:46.4]} 7... e6 {[%clk 0:02:45.6]} 8. Ne5 {[%clk
0:01:43.6]} 8... Qb6 {[%clk 0:02:33.1]} 9. Be2 {[%clk 0:01:28.1]} 9... Be7
{[%clk 0:02:00.2]} 10. O-O {[%clk 0:01:27.3]} 10... O-O {[%clk 0:01:59.6]} 11.
a4 {[%clk 0:01:10.8]} 11... cxd4 {[%clk 0:01:55.2]} 12. Nxc6 {[%clk 0:01:07.9]}
12... bxc6 {[%clk 0:01:49.2]} 13. exd4 {[%clk 0:00:59.6]} 13... Qxb2 {[%clk
0:01:33.9]} 14. Qd3 {[%clk 0:00:57.7]} 14... Qb6 {[%clk 0:01:11.4]} 15. Rfb1
{[%clk 0:00:56.1]} 15... Qa5 {[%clk 0:01:04.5]} 16. c3 {[%clk 0:00:36.2]} 16...
Ne4 {[%clk 0:00:55.7]} 17. Bf3 {[%clk 0:00:18.4]} 17... Nd6 {[%clk 0:00:46.9]}
18. Be2 {[%clk 0:00:08.8]} 18... Rab8 {[%clk 0:00:36.1]} 19. Qg3 {[%clk
0:00:08.9]} 19... Rxb1+ {[%clk 0:00:30.3]} 20. Rxb1 {[%clk 0:00:09.8]} 20... Ne4
{[%clk 0:00:25.6]} 21. Qd3 {[%clk 0:00:04.8]} 21... Qxc3 {[%clk 0:00:25]} 22.
Rc1 {[%clk 0:00:04.8]} 22... Qxd3 {[%clk 0:00:20.4]} 23. Bxd3 {[%clk 0:00:05.7]}
23... Rc8 {[%clk 0:00:14.8]} 24. Ba6 {[%clk 0:00:03.8]} 24... Rd8 {[%clk
0:00:11]} 25. Rxc6 {[%clk 0:00:04]} 25... Bf6 {[%clk 0:00:09.2]} 26. Be3 {[%clk
0:00:04.3]} 26... Nd6 {[%clk 0:00:07.2]} 27. Rc7 {[%clk 0:00:03.9]} 27... Ra8
{[%clk 0:00:06.3]} 28. g4 {[%clk 0:00:02.2]} 28... h6 {[%clk 0:00:06.2]} 29. g5
{[%clk 0:00:02.7]} 29... hxg5 {[%clk 0:00:05.9]} 30. f3 {[%clk 0:00:03.3]} 30...
Nc4 {[%clk 0:00:03.4]} 31. Bc1 {[%clk 0:00:02.2]} 31... Rb8 {[%clk 0:00:02.9]}
32. Kf1 {[%clk 0:00:02.8]} 32... Rb1 {[%clk 0:00:02.8]} 33. Ke2 {[%clk
0:00:01.7]} 33... Rxc1 {[%clk 0:00:03]} 34. Rxa7 {[%clk 0:00:02.4]} 34... Kh7
{[%clk 0:00:02.6]} 35. Kd3 {[%clk 0:00:03.3]} 35... Ra1 {[%clk 0:00:02.8]} 36.
Rxf7 {[%clk 0:00:03.4]} 36... Kg6 {[%clk 0:00:02.4]} 37. Rc7 {[%clk 0:00:02.8]}
37... Rxa4 {[%clk 0:00:02.5]} 38. Bb5 {[%clk 0:00:03.5]} 38... Ra3+ {[%clk
0:00:02.7]} 39. Kc2 {[%clk 0:00:03.4]} 39... Rxf3 {[%clk 0:00:02.9]} 40. Be8+
{[%clk 0:00:03.2]} 40... Kf5 {[%clk 0:00:02.5]} 41. Rf7 {[%clk 0:00:03.4]} 41...
Rxh3 {[%clk 0:00:02.6]} 42. Bd7 {[%clk 0:00:03.9]} 42... Rh2+ {[%clk 0:00:03.3]}
43. Kd3 {[%clk 0:00:04.2]} 43... Nd6 {[%clk 0:00:03.8]} 44. Rf8 {[%clk
0:00:03.9]} 44... Rh3+ {[%clk 0:00:04]} 45. Ke2 {[%clk 0:00:04.5]} 45... Ke4
{[%clk 0:00:04.2]} 46. Re8 {[%clk 0:00:04.7]} 46... Rh2+ {[%clk 0:00:05.1]} 47.
Kf1 {[%clk 0:00:05.1]} 47... Kxd4 {[%clk 0:00:04.7]} 48. Bxe6 {[%clk 0:00:04.7]}
48... Ne4 {[%clk 0:00:04]} 49. Bf5 {[%clk 0:00:03.4]} 49... Rf2+ {[%clk
0:00:04.2]} 50. Ke1 {[%clk 0:00:03.3]} 50... Rxf5 {[%clk 0:00:05.1]} 51. Kd1
{[%clk 0:00:03.3]} 51... Ke3 {[%clk 0:00:05.5]} 52. Kc2 {[%clk 0:00:04.2]} 52...
d4 {[%clk 0:00:06]} 53. Kb3 {[%clk 0:00:05]} 53... Rf2 {[%clk 0:00:06.5]} 54.
Kc4 {[%clk 0:00:05.9]} 54... Rc2+ {[%clk 0:00:06.9]} 55. Kd5 {[%clk 0:00:06.4]}
55... d3 {[%clk 0:00:07.8]} 56. Rxe4+ {[%clk 0:00:06.8]} 56... Kd2 {[%clk
0:00:08]} 57. Rg4 {[%clk 0:00:05.9]} 57... Kc1 {[%clk 0:00:07.9]} 58. Ke4 {[%clk
0:00:06.8]} 58... d2 {[%clk 0:00:08.2]} 0-1

[Event "*** Titled Tuesday Blitz"]
[Site "Chess.com"]
[Date "2020.04.28"]
[Round "6"]
[White "djano"]
[Black "Phenix2k"]
[Result "1-0"]
[WhiteElo "2455"]
[BlackElo "2286"]
[TimeControl "180+1"]
[EndTime "11:07:59 PDT"]
[Termination "djano won by resignation"]

1. d4 {[%clk 0:03:00.9]} 1... Nf6 {[%clk 0:02:57.5]} 2. Bf4 {[%clk 0:03:00.9]}
2... d5 {[%clk 0:02:57.3]} 3. e3 {[%clk 0:02:59.2]} 3... e6 {[%clk 0:02:57.2]}
4. Nf3 {[%clk 0:02:57]} 4... Bd6 {[%clk 0:02:55.1]} 5. Bg3 {[%clk 0:02:56.6]}
5... O-O {[%clk 0:02:53.9]} 6. Nbd2 {[%clk 0:02:56.6]} 6... c5 {[%clk
0:02:52.1]} 7. c3 {[%clk 0:02:57]} 7... Qc7 {[%clk 0:02:51.2]} 8. dxc5 {[%clk
0:02:53.7]} 8... Qxc5 {[%clk 0:02:50.6]} 9. Bd3 {[%clk 0:02:50.4]} 9... Qc7
{[%clk 0:02:41.9]} 10. Qe2 {[%clk 0:02:46.2]} 10... Nbd7 {[%clk 0:02:37.2]} 11.
e4 {[%clk 0:02:43.6]} 11... dxe4 {[%clk 0:02:36.7]} 12. Nxe4 {[%clk 0:02:43.6]}
12... Nxe4 {[%clk 0:02:35.3]} 13. Qxe4 {[%clk 0:02:42]} 13... Nf6 {[%clk
0:02:33.1]} 14. Qh4 {[%clk 0:02:41.6]} 14... h6 {[%clk 0:02:15.9]} 15. O-O-O
{[%clk 0:02:37.2]} 15... Bxg3 {[%clk 0:02:09.8]} 16. hxg3 {[%clk 0:02:34.4]}
16... e5 {[%clk 0:02:03.2]} 17. Kb1 {[%clk 0:02:19]} 17... Bg4 {[%clk
0:01:54.4]} 18. Rde1 {[%clk 0:02:13.4]} 18... Rfe8 {[%clk 0:01:48.1]} 19. Bc2
{[%clk 0:02:03]} 19... b5 {[%clk 0:01:39.2]} 20. Nh2 {[%clk 0:02:00.4]} 20...
Be6 {[%clk 0:01:25.4]} 21. g4 {[%clk 0:02:00.7]} 21... Qa5 {[%clk 0:01:08]} 22.
a3 {[%clk 0:01:58.4]} 22... Rac8 {[%clk 0:01:02.2]} 23. g5 {[%clk 0:01:56.5]}
23... Rxc3 {[%clk 0:00:58.8]} 24. Qb4 {[%clk 0:01:12]} 24... Qxb4 {[%clk
0:00:47.9]} 25. axb4 {[%clk 0:01:12.9]} 25... Rxc2 {[%clk 0:00:48.1]} 26. Kxc2
{[%clk 0:01:12.1]} 26... Nd5 {[%clk 0:00:47]} 27. Rxe5 {[%clk 0:01:00.1]} 27...
Nxb4+ {[%clk 0:00:40.2]} 28. Kc3 {[%clk 0:01:00.5]} 28... Nd5+ {[%clk 0:00:37]}
29. Kd4 {[%clk 0:01:00.6]} 29... Rd8 {[%clk 0:00:27.8]} 30. gxh6 {[%clk
0:00:55.4]} 30... gxh6 {[%clk 0:00:24.4]} 31. Kc5 {[%clk 0:00:51.6]} 31... a6
{[%clk 0:00:18.3]} 32. Nf3 {[%clk 0:00:51.7]} 32... Rc8+ {[%clk 0:00:18.3]} 33.
Kd6 {[%clk 0:00:42.6]} 33... Rd8+ {[%clk 0:00:16.9]} 34. Kc6 {[%clk 0:00:39.7]}
34... Rc8+ {[%clk 0:00:17.3]} 35. Kb7 {[%clk 0:00:38.2]} 35... Rc2 {[%clk
0:00:17]} 36. Rxh6 {[%clk 0:00:34.3]} 36... a5 {[%clk 0:00:16.5]} 37. Nd4 {[%clk
0:00:32]} 37... Rc7+ {[%clk 0:00:15.3]} 38. Kb8 {[%clk 0:00:30.2]} 38... Rd7
{[%clk 0:00:13.4]} 39. Rg5+ {[%clk 0:00:23.6]} 39... Kf8 {[%clk 0:00:13.1]} 40.
Nxe6+ {[%clk 0:00:24.2]} 40... fxe6 {[%clk 0:00:13.8]} 41. Rh8+ {[%clk
0:00:22.4]} 41... Ke7 {[%clk 0:00:14.2]} 42. Rg7+ {[%clk 0:00:19.8]} 42... Kd6
{[%clk 0:00:14.6]} 43. Rxd7+ {[%clk 0:00:19.4]} 43... Kxd7 {[%clk 0:00:15.5]}
44. g4 {[%clk 0:00:19]} 44... b4 {[%clk 0:00:15.7]} 45. g5 {[%clk 0:00:19.1]}
45... Ke7 {[%clk 0:00:15.2]} 46. Rh7+ {[%clk 0:00:18.4]} 46... Kf8 {[%clk
0:00:14.9]} 47. Ra7 {[%clk 0:00:17.9]} 47... Kg8 {[%clk 0:00:12.4]} 48. Rxa5
{[%clk 0:00:17.4]} 48... Kg7 {[%clk 0:00:12.7]} 49. Ra6 {[%clk 0:00:12.6]} 49...
Kf7 {[%clk 0:00:12.8]} 50. g6+ {[%clk 0:00:12.3]} 50... Kxg6 {[%clk 0:00:13.1]}
51. Rxe6+ {[%clk 0:00:12.4]} 51... Kf5 {[%clk 0:00:14]} 52. Re8 {[%clk
0:00:11.2]} 52... Kf4 {[%clk 0:00:14.1]} 53. Kb7 {[%clk 0:00:10.7]} 53... Kf3
{[%clk 0:00:14.3]} 54. Rf8+ {[%clk 0:00:11.1]} 54... Ke4 {[%clk 0:00:14.6]} 55.
Kc6 {[%clk 0:00:10.3]} 55... Nf4 {[%clk 0:00:13.1]} 56. Kb5 {[%clk 0:00:08.9]}
56... Nd3 {[%clk 0:00:12.6]} 57. b3 {[%clk 0:00:08.4]} 57... Nf4 {[%clk
0:00:10.7]} 58. Rxf4+ {[%clk 0:00:07.7]} 58... Kxf4 {[%clk 0:00:10.4]} 59. Kxb4
{[%clk 0:00:08.6]} 1-0

[Event "*** Titled Tuesday Blitz"]
[Site "Chess.com"]
[Date "2020.04.28"]
[Round "6"]
[White "Sweafty"]
[Black "zivicd"]
[Result "1-0"]
[WhiteElo "2467"]
[BlackElo "2223"]
[TimeControl "180+1"]
[EndTime "11:08:00 PDT"]
[Termination "Sweafty won on time"]

1. Nf3 {[%clk 0:03:00.9]} 1... c5 {[%clk 0:02:59.8]} 2. b3 {[%clk 0:02:59.5]}
2... e6 {[%clk 0:02:59.3]} 3. Bb2 {[%clk 0:02:59.5]} 3... b6 {[%clk 0:02:59.2]}
4. g3 {[%clk 0:02:59.5]} 4... Bb7 {[%clk 0:02:59.4]} 5. Bg2 {[%clk 0:02:59.8]}
5... Nf6 {[%clk 0:02:59.6]} 6. O-O {[%clk 0:02:59.9]} 6... d5 {[%clk 0:02:56.3]}
7. e3 {[%clk 0:02:59.7]} 7... Nc6 {[%clk 0:02:56.4]} 8. c4 {[%clk 0:02:59.6]}
8... dxc4 {[%clk 0:02:52]} 9. bxc4 {[%clk 0:02:59.2]} 9... Be7 {[%clk
0:02:39.5]} 10. Qe2 {[%clk 0:02:48.8]} 10... Qc7 {[%clk 0:02:37.7]} 11. Nc3
{[%clk 0:02:46.7]} 11... a6 {[%clk 0:02:37.4]} 12. d3 {[%clk 0:02:46.4]} 12...
O-O {[%clk 0:02:35]} 13. Rfd1 {[%clk 0:02:45.9]} 13... Rfd8 {[%clk 0:02:34.5]}
14. Rab1 {[%clk 0:02:45.7]} 14... Rab8 {[%clk 0:02:23.7]} 15. h3 {[%clk
0:02:40.7]} 15... Ba8 {[%clk 0:02:18.5]} 16. g4 {[%clk 0:02:35.4]} 16... h6
{[%clk 0:02:17.7]} 17. Ba1 {[%clk 0:02:28.9]} 17... Rd7 {[%clk 0:02:01.4]} 18.
Ne1 {[%clk 0:02:26.1]} 18... Rbd8 {[%clk 0:01:58.3]} 19. f4 {[%clk 0:02:25.6]}
19... Nb4 {[%clk 0:01:46.9]} 20. Bxa8 {[%clk 0:02:24.2]} 20... Rxa8 {[%clk
0:01:46.1]} 21. a3 {[%clk 0:02:20.3]} 21... Nc6 {[%clk 0:01:44.7]} 22. Qg2
{[%clk 0:01:52.9]} 22... g6 {[%clk 0:01:34.5]} 23. Ne4 {[%clk 0:01:36.6]} 23...
Nxe4 {[%clk 0:01:29.8]} 24. Qxe4 {[%clk 0:01:37.5]} 24... Rad8 {[%clk
0:01:28.2]} 25. Rd2 {[%clk 0:01:16.7]} 25... Bf8 {[%clk 0:01:26.3]} 26. Rg2
{[%clk 0:01:09]} 26... Bg7 {[%clk 0:01:25.1]} 27. Bxg7 {[%clk 0:01:05.4]} 27...
Kxg7 {[%clk 0:01:26]} 28. Rgb2 {[%clk 0:01:00.8]} 28... Rb8 {[%clk 0:01:17.2]}
29. Kf1 {[%clk 0:00:57]} 29... Qd8 {[%clk 0:01:14]} 30. Ke2 {[%clk 0:00:56]}
30... Kg8 {[%clk 0:01:08.8]} 31. Nf3 {[%clk 0:00:55.3]} 31... Qc7 {[%clk
0:01:04.9]} 32. h4 {[%clk 0:00:49.8]} 32... Qd6 {[%clk 0:00:30.3]} 33. Ne5
{[%clk 0:00:30.6]} 33... Nxe5 {[%clk 0:00:24]} 34. fxe5 {[%clk 0:00:31.5]} 34...
Qc7 {[%clk 0:00:22.9]} 35. h5 {[%clk 0:00:28.7]} 35... g5 {[%clk 0:00:20.8]} 36.
Rb3 {[%clk 0:00:28.9]} 36... Qd8 {[%clk 0:00:19.4]} 37. Rf1 {[%clk 0:00:27.4]}
37... b5 {[%clk 0:00:18.5]} 38. cxb5 {[%clk 0:00:22.5]} 38... axb5 {[%clk
0:00:18.3]} 39. Rf6 {[%clk 0:00:22.5]} 39... Kg7 {[%clk 0:00:18.3]} 40. Rb1
{[%clk 0:00:20.2]} 40... c4 {[%clk 0:00:18.1]} 41. dxc4 {[%clk 0:00:20.1]} 41...
Rd2+ {[%clk 0:00:17.8]} 42. Kf3 {[%clk 0:00:20.4]} 42... bxc4 {[%clk 0:00:17.4]}
43. Rxb8 {[%clk 0:00:17.8]} 43... Qxb8 {[%clk 0:00:17.3]} 44. Rxf7+ {[%clk
0:00:08.8]} 44... Kxf7 {[%clk 0:00:15.2]} 45. Qg6+ {[%clk 0:00:09.5]} 45... Ke7
{[%clk 0:00:14]} 46. Qg7+ {[%clk 0:00:07.6]} 46... Kd8 {[%clk 0:00:13.7]} 47.
Qxh6 {[%clk 0:00:08.2]} 47... Qxe5 {[%clk 0:00:12.3]} 48. Qf8+ {[%clk
0:00:08.2]} 48... Kd7 {[%clk 0:00:12]} 49. Qf7+ {[%clk 0:00:07]} 49... Kd6
{[%clk 0:00:09.4]} 50. Qf8+ {[%clk 0:00:07.6]} 50... Kc6 {[%clk 0:00:07]} 51.
Qa8+ {[%clk 0:00:06.8]} 51... Kb5 {[%clk 0:00:06.5]} 52. Qb7+ {[%clk 0:00:06.8]}
52... Ka5 {[%clk 0:00:04.7]} 53. Qa7+ {[%clk 0:00:05.5]} 53... Kb5 {[%clk
0:00:04.5]} 54. Qb7+ {[%clk 0:00:06.4]} 54... Kc5 {[%clk 0:00:03.9]} 55. Qa7+
{[%clk 0:00:06.2]} 55... Kd5 {[%clk 0:00:01.7]} 56. Qa5+ {[%clk 0:00:06.4]}
56... Kd6 {[%clk 0:00:01.4]} 57. Qxd2+ {[%clk 0:00:07.2]} 1-0

[Event "*** Titled Tuesday Blitz"]
[Site "Chess.com"]
[Date "2020.04.28"]
[Round "6"]
[White "WiktoriaPOL"]
[Black "mariofs"]
[Result "0-1"]
[WhiteElo "2020"]
[BlackElo "2204"]
[TimeControl "180+1"]
[EndTime "11:08:00 PDT"]
[Termination "mariofs won by resignation"]

1. c4 {[%clk 0:03:00.9]} 1... c6 {[%clk 0:03:00.1]} 2. Nf3 {[%clk 0:03:00.1]}
2... d5 {[%clk 0:03:00.4]} 3. e3 {[%clk 0:02:57.7]} 3... Nf6 {[%clk 0:02:57.7]}
4. b3 {[%clk 0:02:55.7]} 4... Bf5 {[%clk 0:02:56]} 5. Bb2 {[%clk 0:02:52.2]}
5... e6 {[%clk 0:02:56.1]} 6. Nc3 {[%clk 0:02:43.3]} 6... Nbd7 {[%clk
0:02:55.6]} 7. Be2 {[%clk 0:02:37.8]} 7... h6 {[%clk 0:02:55.1]} 8. Rc1 {[%clk
0:02:34]} 8... Be7 {[%clk 0:02:55]} 9. O-O {[%clk 0:02:32.9]} 9... O-O {[%clk
0:02:54.5]} 10. d4 {[%clk 0:02:24.4]} 10... Re8 {[%clk 0:02:41.2]} 11. Bd3
{[%clk 0:02:22.5]} 11... Bxd3 {[%clk 0:02:40.9]} 12. Qxd3 {[%clk 0:02:22.4]}
12... Bd6 {[%clk 0:02:32.8]} 13. e4 {[%clk 0:02:19.7]} 13... dxe4 {[%clk
0:02:31.9]} 14. Nxe4 {[%clk 0:02:18.4]} 14... Nxe4 {[%clk 0:02:32.8]} 15. Qxe4
{[%clk 0:02:18.1]} 15... Nf6 {[%clk 0:02:29.3]} 16. Qe2 {[%clk 0:02:11.1]} 16...
a5 {[%clk 0:02:12]} 17. Ne5 {[%clk 0:02:06.7]} 17... Bxe5 {[%clk 0:02:05.5]} 18.
dxe5 {[%clk 0:02:05.9]} 18... Nd7 {[%clk 0:02:06]} 19. Rfd1 {[%clk 0:02:03.2]}
19... Qc7 {[%clk 0:02:05.3]} 20. f4 {[%clk 0:01:48.5]} 20... Nc5 {[%clk
0:01:55.7]} 21. Ba3 {[%clk 0:01:46.4]} 21... Na6 {[%clk 0:01:51.7]} 22. Bd6
{[%clk 0:01:45.2]} 22... Qb6+ {[%clk 0:01:51.3]} 23. Kh1 {[%clk 0:01:44.3]}
23... Nb4 {[%clk 0:01:46.4]} 24. c5 {[%clk 0:01:39.9]} 24... Qa6 {[%clk
0:01:41.7]} 25. Qxa6 {[%clk 0:01:29.6]} 25... Nxa6 {[%clk 0:01:42.6]} 26. a3
{[%clk 0:01:27.1]} 26... g6 {[%clk 0:01:33.8]} 27. Rd2 {[%clk 0:01:26.5]} 27...
Rec8 {[%clk 0:01:21.1]} 28. Rcd1 {[%clk 0:01:26.3]} 28... Kg7 {[%clk 0:01:17.8]}
29. Kg1 {[%clk 0:01:25.4]} 29... g5 {[%clk 0:01:16.1]} 30. fxg5 {[%clk
0:01:16.9]} 30... hxg5 {[%clk 0:01:17]} 31. Be7 {[%clk 0:01:17.2]} 31... Kg6
{[%clk 0:01:04.8]} 32. Rd7 {[%clk 0:01:14.3]} 32... Rc7 {[%clk 0:00:59.8]} 33.
Kf2 {[%clk 0:01:00.9]} 33... Re8 {[%clk 0:00:57]} 34. Rxc7 {[%clk 0:00:54.9]}
34... Nxc7 {[%clk 0:00:57.9]} 35. Bd6 {[%clk 0:00:55.2]} 35... Nd5 {[%clk
0:00:57.6]} 36. Kf3 {[%clk 0:00:47.1]} 36... Rh8 {[%clk 0:00:56.4]} 37. h3
{[%clk 0:00:46.5]} 37... Rh4 {[%clk 0:00:53]} 38. Rd3 {[%clk 0:00:35.2]} 38...
Rf4+ {[%clk 0:00:49]} 39. Kg3 {[%clk 0:00:30.1]} 39... Rf1 {[%clk 0:00:47.9]}
40. Kh2 {[%clk 0:00:23.1]} 40... Ra1 {[%clk 0:00:46.9]} 41. a4 {[%clk
0:00:20.7]} 41... Ra2 {[%clk 0:00:45.7]} 42. Kg1 {[%clk 0:00:17]} 42... Nf4
{[%clk 0:00:45.2]} 43. Re3 {[%clk 0:00:13.9]} 43... Rxg2+ {[%clk 0:00:43.3]} 44.
Kf1 {[%clk 0:00:12.4]} 44... Rb2 {[%clk 0:00:41.8]} 45. Bc7 {[%clk 0:00:10.6]}
45... Nd5 {[%clk 0:00:40.8]} 46. Rd3 {[%clk 0:00:04.3]} 46... Rc2 {[%clk
0:00:37.8]} 47. Bxa5 {[%clk 0:00:03.3]} 47... Rxc5 {[%clk 0:00:37.2]} 48. Bd8
{[%clk 0:00:02.6]} 48... Nf4 {[%clk 0:00:34.6]} 49. Rd2 {[%clk 0:00:02.3]} 49...
Rxe5 {[%clk 0:00:32.6]} 50. b4 {[%clk 0:00:02.4]} 50... Re4 {[%clk 0:00:32.3]}
51. b5 {[%clk 0:00:01.2]} 51... Rxa4 {[%clk 0:00:31.8]} 52. bxc6 {[%clk
0:00:01.5]} 52... bxc6 {[%clk 0:00:32.7]} 53. Rc2 {[%clk 0:00:01.7]} 53... Ra1+
{[%clk 0:00:29.4]} 54. Kf2 {[%clk 0:00:01.2]} 54... Nxh3+ {[%clk 0:00:30.3]} 55.
Kg3 {[%clk 0:00:01.4]} 55... Ra3+ {[%clk 0:00:29.6]} 56. Kg2 {[%clk 0:00:01.2]}
56... Nf4+ {[%clk 0:00:29.3]} 57. Kf2 {[%clk 0:00:01.6]} 57... Nd3+ {[%clk
0:00:27.9]} 58. Ke2 {[%clk 0:00:01.9]} 58... Ne5 {[%clk 0:00:28]} 59. Kf2 {[%clk
0:00:02.1]} 59... g4 {[%clk 0:00:26.4]} 60. Bc7 {[%clk 0:00:01.7]} 60... Nd3+
{[%clk 0:00:22.9]} 61. Ke2 {[%clk 0:00:01.8]} 61... Nb4 {[%clk 0:00:21]} 62. Rb2
{[%clk 0:00:02.1]} 62... Ra2 {[%clk 0:00:21]} 63. Bd6 {[%clk 0:00:01.8]} 63...
Rxb2+ {[%clk 0:00:20.6]} 0-1

[Event "*** Titled Tuesday Blitz"]
[Site "Chess.com"]
[Date "2020.04.28"]
[Round "6"]
[White "RianKapriaga"]
[Black "SanQui14"]
[Result "1-0"]
[WhiteElo "2196"]
[BlackElo "2300"]
[TimeControl "180+1"]
[EndTime "11:08:01 PDT"]
[Termination "RianKapriaga won by resignation"]

1. d4 {[%clk 0:03:00.3]} 1... Nf6 {[%clk 0:03:00.1]} 2. Nf3 {[%clk 0:03:00.3]}
2... g6 {[%clk 0:03:01]} 3. c4 {[%clk 0:02:59.3]} 3... Bg7 {[%clk 0:03:01.6]} 4.
Nc3 {[%clk 0:02:59.7]} 4... d5 {[%clk 0:03:01.8]} 5. Bg5 {[%clk 0:02:58.9]} 5...
Ne4 {[%clk 0:03:01.3]} 6. Bh4 {[%clk 0:02:57.7]} 6... Nxc3 {[%clk 0:03:01.5]} 7.
bxc3 {[%clk 0:02:57.5]} 7... dxc4 {[%clk 0:03:02.4]} 8. e3 {[%clk 0:02:52.4]}
8... Be6 {[%clk 0:03:01.1]} 9. Nd2 {[%clk 0:02:49.1]} 9... O-O {[%clk 0:03:01]}
10. Nxc4 {[%clk 0:02:43.7]} 10... c5 {[%clk 0:03:00.6]} 11. Be2 {[%clk 0:02:41]}
11... Nc6 {[%clk 0:02:59.6]} 12. O-O {[%clk 0:02:38.7]} 12... Rc8 {[%clk
0:02:57.6]} 13. Rb1 {[%clk 0:02:33.7]} 13... b6 {[%clk 0:02:56.3]} 14. Qa4
{[%clk 0:02:28]} 14... Qc7 {[%clk 0:02:49.5]} 15. Rfd1 {[%clk 0:02:25.1]} 15...
cxd4 {[%clk 0:02:43.8]} 16. cxd4 {[%clk 0:02:23.2]} 16... Bxc4 {[%clk
0:02:40.5]} 17. Bxc4 {[%clk 0:02:17.2]} 17... Nxd4 {[%clk 0:02:36.8]} 18. Ba6
{[%clk 0:02:03.6]} 18... b5 {[%clk 0:02:33]} 19. Bxb5 {[%clk 0:01:51.1]} 19...
Nxb5 {[%clk 0:02:31.7]} 20. Qxb5 {[%clk 0:01:47.1]} 20... Rfd8 {[%clk
0:02:30.1]} 21. Rxd8+ {[%clk 0:01:44.8]} 21... Rxd8 {[%clk 0:02:31]} 22. h3
{[%clk 0:01:28.3]} 22... Be5 {[%clk 0:02:30.1]} 23. Qb3 {[%clk 0:01:15]} 23...
Rd2 {[%clk 0:02:23.9]} 24. Rd1 {[%clk 0:01:02.4]} 24... Qd6 {[%clk 0:02:18.5]}
25. Rxd2 {[%clk 0:01:01.7]} 25... Qxd2 {[%clk 0:02:17.8]} 26. f4 {[%clk
0:01:00.2]} 26... Bd6 {[%clk 0:02:14.2]} 27. Bf2 {[%clk 0:00:53.6]} 27... a5
{[%clk 0:02:08.9]} 28. a4 {[%clk 0:00:52.7]} 28... Qc1+ {[%clk 0:01:23.4]} 29.
Kh2 {[%clk 0:00:51.1]} 29... Qf1 {[%clk 0:01:23.1]} 30. Bg3 {[%clk 0:00:44.7]}
30... Qe2 {[%clk 0:01:21.7]} 31. Qc3 {[%clk 0:00:35.7]} 31... Bb4 {[%clk
0:01:19.2]} 32. Qd4 {[%clk 0:00:30.7]} 32... Qc2 {[%clk 0:01:04]} 33. Qd8+
{[%clk 0:00:27.8]} 33... Kg7 {[%clk 0:01:04]} 34. Qd4+ {[%clk 0:00:25.9]} 34...
f6 {[%clk 0:01:04]} 35. e4 {[%clk 0:00:24.6]} 35... Qxa4 {[%clk 0:01:01.6]} 36.
e5 {[%clk 0:00:24.5]} 36... Qc6 {[%clk 0:00:58.5]} 37. exf6+ {[%clk 0:00:23.2]}
37... Qxf6 {[%clk 0:00:54.1]} 38. Qa7 {[%clk 0:00:21.4]} 38... Bd6 {[%clk
0:00:47.5]} 39. Qxa5 {[%clk 0:00:18.4]} 39... Bxf4 {[%clk 0:00:47.3]} 40. Bxf4
{[%clk 0:00:17.3]} 40... Qxf4+ {[%clk 0:00:48.2]} 41. Kh1 {[%clk 0:00:17.1]}
41... e5 {[%clk 0:00:48.2]} 42. Qc7+ {[%clk 0:00:16.3]} 42... Kh6 {[%clk
0:00:48]} 43. Qd6 {[%clk 0:00:14.7]} 43... Qf1+ {[%clk 0:00:44.5]} 44. Kh2
{[%clk 0:00:15]} 44... e4 {[%clk 0:00:44.5]} 45. Qd2+ {[%clk 0:00:13.8]} 45...
Kg7 {[%clk 0:00:18.4]} 46. Qd7+ {[%clk 0:00:13.9]} 46... Kf6 {[%clk 0:00:17.1]}
47. Qd4+ {[%clk 0:00:13.5]} 47... Kf5 {[%clk 0:00:16.1]} 48. Qd5+ {[%clk
0:00:13.4]} 48... Kf4 {[%clk 0:00:13.1]} 49. Qf7+ {[%clk 0:00:13.3]} 49... Ke3
{[%clk 0:00:11.9]} 50. Qxf1 {[%clk 0:00:13.7]} 50... Kd4 {[%clk 0:00:12.5]} 51.
Qe1 {[%clk 0:00:14.1]} 51... e3 {[%clk 0:00:13.1]} 52. Kg3 {[%clk 0:00:14.4]}
52... Kd3 {[%clk 0:00:14]} 53. Kf3 {[%clk 0:00:14.3]} 1-0